Cogmind - Beta 10.2 @@@ ROGUE MODE // 2021.09.21 @ 10:32:45 Player: rath Result: Destroyed self with Rocket Launcher Performance ------------- Evolutions (1) 500 Regions Visited (3) 600 Robots Destroyed (74) 370 Value Destroyed (1747) 1747 Prototype IDs (5) 100 Alien Tech Used (0) 0 Bonus (54) 54 TOTAL SCORE: 3371 Bonus ------- High Alert Combat Kills 90 Friendly Fire -36 Cogmind --------- Core Integrity 0/400 Matter 246/300 Energy 173/265 System Corruption 0% Temperature Cool (108) Movement Walking (180) Ox2 Location -9/Materials Parts ------- > --- POWER (1) -------- Improved Ion Engine > --- PROPULSION (2) --- Aluminum Leg Aluminum Leg > --- UTILITY (4) ------ Large Storage Unit Large Storage Unit Improved Signal Interpreter > --- WEAPON (2) ------- EM Pulse Cannon Rocket Launcher > --- INVENTORY (16) --- Light Nuclear Core Light Nuclear Core Aluminum Leg Aluminum Leg Aluminum Leg Aluminum Leg Medium Storage Unit Improved Sensor Array Improved Sensor Array Medium Armor Plating Medium Armor Plating Improved EM Shotgun EM Pulse Cannon EM Pulse Cannon Mini Grenade Launcher Mini Grenade Launcher Peak State ------------ > --- POWER ------------ Improved Ion Engine > --- PROPULSION ------- Aluminum Leg Aluminum Leg > --- UTILITY ---------- Large Storage Unit Large Storage Unit Improved Signal Interpreter > --- WEAPON ----------- EM Pulse Cannon EM Pulse Cannon > --- INVENTORY -------- Light Nuclear Core Light Nuclear Core Aluminum Leg Aluminum Leg Medium Storage Unit Improved Sensor Array Improved Sensor Array Medium Armor Plating Medium Armor Plating EM Pulse Cannon Mini Grenade Launcher Mini Grenade Launcher Mini Grenade Launcher [Rating: 16] Favorites ----------- Power Ion Engine Engine Ion Engine Propulsion Aluminum Leg Leg Aluminum Leg Utility Large Storage Unit Storage Large Storage Unit Processor Improved Signal Interpreter Protection Medium Armor Plating Weapon Mini Grenade Launcher Energy Gun Heavy EM Pulse Gun Energy Cannon EM Pulse Cannon Launcher Mini Grenade Launcher Build | -11 -10 -10 -9 ------- Run | Scr Mat Min Mat Slots Evolved 2 | . . . 2 Power . | . . . . Propulsion . | . . . . Utility 2 | . . . 2 Weapon . | . . . . Parts Attached 39 | 7 8 7 17 Power 7 | 2 . 2 3 Engine 7 | 2 . 2 3 Core . | . . . . Reactor . | . . . . Propulsion 8 | 2 . 2 4 Treads . | . . . . Leg 8 | 2 . 2 4 Wheel . | . . . . Hover . | . . . . Flight . | . . . . Utility 6 | 1 4 . 1 Device . | . . . . Storage 3 | 1 2 . . Processor 1 | . . . 1 Hackware . | . . . . Protection 2 | . 2 . . Artifact . | . . . . Weapon 18 | 2 4 3 9 Energy Gun 7 | 2 2 2 1 Energy Cannon 4 | . . . 4 Ballistic Gun . | . . . . Ballistic Cannon . | . . . . Launcher 7 | . 2 1 4 Special Weapon . | . . . . Impact Weapon . | . . . . Slashing Weapon . | . . . . Piercing Weapon . | . . . . Special Melee Weapon . | . . . . Unidentified Prototypes . | . . . . Parts Lost 10 | . . 1 9 Power 1 | . . . 1 Propulsion 4 | . . . 4 Utility . | . . . . Weapon 5 | . . 1 4 Highest Loss Streak 4 | . . 1 4 Average Slot Usage (%) 91 | . 98 100 77 Engine 12 | . 14 14 10 Leg 25 | . 28 28 20 Storage 21 | . 16 28 22 Processor 1 | . . . 3 Protection 3 | . 10 . . Energy Gun 9 | . 14 12 3 Energy Cannon 3 | . . . 9 Launcher 11 | . 12 15 7 Naked Turns . | . . . . Heaviest Build 51 | 12 41 41 51 Greatest Support 20 | 20 20 20 20 Greatest Overweight (x) 4 | 1 2 2 4 Average Overweight (x) 1 | . 1 1 1 Largest Inventory Capacity 16 | 6 16 16 16 Average Capacity 13 | 5 10 16 16 Most Carried 16 | 5 11 14 16 Average Carried 11 | 2 8 12 13 Final Capacity 16 | 6 16 16 16 Final Carried 16 | 3 11 12 16 Class Distribution -------------------- 100% | Mutant Dominant Class ---------------- Mutant | -10/Materials Mutant | -10/Mines Mutant | -9/Materials Resources | -11 -10 -10 -9 ----------- Run | Scr Mat Min Mat Matter Collected 1171 | 234 136 225 576 Remotely . | . . . . Salvage Created 1962 | . 256 574 1132 Parts 131 | . 30 26 75 Haulers Intercepted 5 | . 1 . 4 Recyclers Shooed . | . . . . Parts Field Recycled . | . . . . Retrieved Matter . | . . . . Parts Self-Destructed . | . . . . Prevented . | . . . . Kills | -11 -10 -10 -9 ------- Run | Scr Mat Min Mat Combat Hostiles Destroyed 49 | . 8 11 30 Guns 8 | . 1 5 2 Cannons 8 | . . . 8 AOE 33 | . 7 6 20 Classes Destroyed 11 | . 5 3 3 Worker 3 | . . 2 1 Builder 5 | . 5 . . Tunneler 4 | . . 3 1 Hauler 5 | . 1 . 4 Recycler 4 | . . 3 1 Operator 1 | . . . 1 Watcher 3 | . 1 . 2 Swarmer 14 | . 6 3 5 Grunt 26 | . 2 8 16 Brawler 2 | . . . 2 Sentry 7 | . . . 7 Best Kill Streak 7 | . 7 6 5 Combat Bots Only 5 | . 3 3 5 Max Kills in Single Turn 3 | . 3 3 2 Gunslinging . | . . . . Exploded 3 | . 3 1 2 Melee . | . . . . Uniques/NPCs Destroyed . | . . . . Combat | -11 -10 -10 -9 -------- Run | Scr Mat Min Mat Damage Taken 1933 | . 127 575 1231 Core 594 | . 23 164 407 Absorbed by Shields . | . . . . Core Remaining (%) 62 | 100 . 25 . Volleys Fired 134 | . 23 44 67 Largest 2 | . 2 2 2 Hottest 126 | . 90 75 126 Shots Fired 183 | . 25 52 106 Gun 66 | . 17 34 15 Cannon 49 | . . . 49 Launcher 68 | . 8 18 42 Special . | . . . . Kinetic . | . . . . Thermal . | . . . . Explosive 68 | . 8 18 42 Electromagnetic 115 | . 17 34 64 Robot Hit Streak 9 | . 9 5 9 Robot Miss Streak 4 | . 4 4 3 Penetration Max . | . . . . Secondary Targets . | . . . . Shots Hit Robots 104 | . 10 29 65 Core Hits 101 | . 16 29 56 Critical Hits . | . . . . Critical Kills . | . . . . Critical Parts Destroyed . | . . . . Melee Attacks . | . . . . Impact . | . . . . Slashing . | . . . . Piercing . | . . . . Sneak Attacks . | . . . . Combat Hostiles . | . . . . Follow-up Attacks . | . . . . Damage Inflicted 5871 | . 888 1455 3528 Guns 661 | . 177 335 149 Cannons 730 | . . . 730 Explosions 4480 | . 711 1120 2649 Melee . | . . . . Ramming . | . . . . Kinetic . | . . . . Thermal 377 | . 89 104 184 Explosive 4103 | . 622 1016 2465 Electromagnetic 1391 | . 177 335 879 Impact . | . . . . Slashing . | . . . . Piercing . | . . . . Highest Corruption . | . . . . Average Corruption . | . . . . Corruption Purged . | . . . . Overload Shots . | . . . . Overflow Damage 201 | . 40 26 135 Projectiles 10 | . . . 10 Explosions 191 | . 40 26 125 Melee . | . . . . Knockbacks . | . . . . Impact . | . . . . Kinetic . | . . . . Secondary . | . . . . Self-Inflicted Damage 578 | . 14 208 356 Shots 22 | . 1 7 14 Rammed . | . . . . Targets Rammed . | . . . . Kicked . | . . . . Crushed . | . . . . Highest Temperature 129 | . 96 129 129 Average Temperature 35 | . 23 36 38 Received Heat Transfer 579 | . 24 198 357 Siege Activations . | . . . . Robots Corrupted . | . . . . Combat Hostiles . | . . . . Parts Fried 9 | . 1 3 5 Impact Corruptions . | . . . . Robots Melted . | . . . . Combat Hostiles . | . . . . Parts Melted . | . . . . Heat Transferred 600 | . 50 200 350 Parts Sabotaged . | . . . . Parts Stolen . | . . . . Parts Stripped . | . . . . Power Chain Reactions 7 | . 1 2 4 Missiles Intercepted . | . . . . Alert | -11 -10 -10 -9 ------- Run | Scr Mat Min Mat Peak Influence 618 | . 232 220 618 Initial 90 | . . 90 35 Average 173 | . 56 123 329 Maximum Alert Level 2 | . 1 1 2 Low Security (%) 66 | 100 90 71 37 Level 1 17 | . 9 28 17 Level 2 16 | . . . 44 Level 3 . | . . . . Level 4 . | . . . . Level 5 . | . . . . High Security . | . . . . Max Security . | . . . . Squads Dispatched 5 | . 1 . 4 Investigation . | . . . . Extermination . | . . . . Reinforcement 5 | . 1 . 4 Assault . | . . . . Garrison . | . . . . Intercept . | . . . . Construction Impeded 1 | . . . 1 Haulers Reinforced . | . . . . Stealth | -11 -10 -10 -9 --------- Run | Scr Mat Min Mat Distress Signals 3 | . . . 3 Communications Jammed . | . . . . Distress Signals . | . . . . Times Spotted 78 | . 18 16 44 Peak Tracking Total 5 | . 3 3 5 Tactical Retreats 5 | . . 4 1 Traps | -11 -10 -10 -9 ------- Run | Scr Mat Min Mat Traps Triggered . | . . . . Indirectly . | . . . . Trap Hack Attempts . | . . . . Triggered . | . . . . Disarmed . | . . . . Reprogrammed . | . . . . Reused . | . . . . Traps Extracted . | . . . . Installed . | . . . . Triggered . | . . . . Machines | -11 -10 -10 -9 ---------- Run | Scr Mat Min Mat Machines Disabled 14 | . 4 1 9 Max in Single Turn 2 | . 1 1 2 Machines Sabotaged . | . . . . Garrisons Compromised . | . . . . Overloaded Fab Kills . | . . . . Fab Network Shutdowns . | . . . . Hacking | -11 -10 -10 -9 --------- Run | Scr Mat Min Mat Machines Accessed 15 | . 6 . 9 Terminals 14 | . 6 . 8 Fabricators . | . . . . Repair Stations 1 | . . . 1 Recycling Units . | . . . . Scanalyzers . | . . . . Garrison Access . | . . . . Total Hacks 39 | . 21 . 18 Successful 24 | . 14 . 10 Failed 14 | . 6 . 8 Catastrophic 1 | . . . 1 Database Lockouts 1 | . 1 . . Manual 30 | . 15 . 15 Terminals 37 | . 21 . 16 Fabricators . | . . . . Repair Stations 2 | . . . 2 Recycling Units . | . . . . Scanalyzers . | . . . . Garrison Access . | . . . . Terminal Hacks 11 | . 9 . 2 Prototype ID Bank 4 | . 4 . . Branch Access Points 1 | . . . 1 Terminal Index 2 | . 1 . 1 Alert Level 1 | . 1 . . Unreport Threat 1 | . 1 . . Hauler Manifests 1 | . 1 . . Registered Components 1 | . 1 . . Fabricator Hacks . | . . . . Repair Station Hacks 2 | . . . 2 Scan Component 1 | . . . 1 Repair 1 | . . . 1 Recycling Unit Hacks . | . . . . Scanalyzer . | . . . . Garrison Access Hacks . | . . . . Unauthorized Hacks 11 | . 5 . 6 Terminals 11 | . 5 . 6 Assimilate 2 | . 2 . . Botnet 6 | . 2 . 4 Operators 3 | . 1 . 2 Fabricators . | . . . . Repair Stations . | . . . . Recycling Units . | . . . . Scanalyzers . | . . . . Garrison Access . | . . . . Data Cores Recovered . | . . . . Used . | . . . . Hacking Detections 12 | . 6 . 6 Full Trace Events . | . . . . Feedback Events . | . . . . Feedback Blocked . | . . . . Robot Schematics Acquired . | . . . . Robots Built . | . . . . Matter . | . . . . Time . | . . . . Total Robot Build Rating . | . . . . Part Schematics Acquired . | . . . . Parts Built . | . . . . Matter . | . . . . Time . | . . . . Total Part Build Rating . | . . . . Parts Repaired 1 | . . . 1 Time 32 | . . . 32 Parts Recycled . | . . . . Recycled Matter . | . . . . Retrieved Matter . | . . . . Retrieved Components . | . . . . Parts Scanalyzed . | . . . . Part Schematics Acquired . | . . . . Parts Damaged . | . . . . Bothacking | -11 -10 -10 -9 ------------ Run | Scr Mat Min Mat Used RIF Installer . | . . . . Robots Hacked . | . . . . Non-combat . | . . . . Combat . | . . . . Robot Hacks Applied . | . . . . Relay Couplers Released . | . . . . Robots Rewired . | . . . . Allies Hacked . | . . . . Hacks Repelled . | . . . . Allies | -11 -10 -10 -9 -------- Run | Scr Mat Min Mat Total Allies 1 | . 1 . . Largest Group 1 | . 1 1 . Highest-Rated Group 10 | . 10 10 . Highest-Rated Ally 10 | . 10 10 . Total Orders . | . . . . Ally Attacks . | . . . . Total Damage . | . . . . Kills . | . . . . Allies Corrupted . | . . . . Allies Melted . | . . . . Intel | -11 -10 -10 -9 ------- Run | Scr Mat Min Mat Robot Analysis Total . | . . . . Derelict Logs Recovered 1 | . . 1 . Drone Launches . | . . . . Drone Recoveries . | . . . . Exploration | -11 -10 -10 -9 ------------- Run | Scr Mat Min Mat Turns Passed 3548 | 68 1189 1002 1289 Spaces Moved 1630 | 48 639 371 572 Core 15 | 15 . . . Treads . | . . . . Legs 1615 | 33 639 371 572 Wheels . | . . . . Hover . | . . . . Flight . | . . . . Fastest Speed 50 | 50 120 150 150 Average Speed 165 | 108 150 177 178 Slowest Speed 240 | 120 180 180 240 Overloaded Moves . | . . . . Propulsion Burnouts . | . . . . Robots Hopped . | . . . . Cave-ins Triggered . | . . . . Exploration Rate (%) 62 | 3 90 83 75 Regions Visited 3 Branch Regions 1 Pre-discovered Areas 1 | . . 1 . Known Exits Taken . | . . . . Unknown Exits Taken 3 | 1 1 1 . Scrap Searched 1 | . . 1 . Spaces Dug 8 | . 8 . . Terrain Destroyed 426 | . 38 153 235 Melee . | . . . . Projectile . | . . . . AOE 426 | . 38 153 235 Terrain Rammed . | . . . . Walls Destroyed . | . . . . Machines Disabled . | . . . . Actions | -11 -10 -10 -9 --------- Run | Scr Mat Min Mat Total 2301 | 63 845 659 734 Wait 447 | . 155 232 60 Move 1627 | 47 638 370 572 Hop . | . . . . Pick Up 42 | 9 13 4 16 Fast Attach 3 | . 2 . 1 Attach 20 | 6 2 1 11 Detach 1 | . 1 . . Swap 16 | 1 4 6 5 Drop 11 | . 7 2 2 Fire 134 | . 23 44 67 Melee . | . . . . Ram . | . . . . Kick . | . . . . Crush . | . . . . Escape Stasis . | . . . . Rewire . | . . . . Trap . | . . . . Miscellaneous . | . . . . Route ------- -11/Scrapyard -10/Materials (discovered 5 exits: *Mat x3 / [*Min x2]) -10/Mines (discovered 2 exits: *Mat x2) -9/Materials (discovered 2 exits: [*Mat] / *Min) History --------- Turn | Location | Event 20 | -11/Scrapyard | Discovered new exit (range 14) 69 | -11/Scrapyard | Entered Materials 129 | -10/Materials | Discovered new exit (range 5) 318 | -10/Materials | Build established: Mutant 343 | -10/Materials | Discovered new exit (range 14) 580 | -10/Materials | Discovered new exit (range 13) 1006 | -10/Materials | Central database locked down 1137 | -10/Materials | Discovered new exit (range 10) 1189 | -10/Materials | Discovered new exit (range 6) 1258 | -10/Materials | Entered Mines 1258 | -10/Mines | Accompanied by 1 ally 1275 | -10/Mines | Discovered new exit (range 8) 1670 | -10/Mines | Learned location of Zion (-7) 1964 | -10/Mines | Excavation squad dispatched 1964 | -10/Mines | A large section of the Mines collapsed 2164 | -10/Mines | Core integrity fell below 50% 2225 | -10/Mines | Discovered new exit (range 6) 2260 | -10/Mines | Entered Materials 2260 | -9/Materials | Evolved 2 slots: Utility x2 2507 | -9/Materials | Identified exit to Mines 2652 | -9/Materials | Discovered new exit (range 16) 2842 | -9/Materials | Core integrity fell below 50% 2893 | -9/Materials | Lost 4 parts (1p2n1w) 2978 | -9/Materials | Repaired Imp. Ion Engine? 3022 | -9/Materials | Core integrity fell below 20% 3549 | -9/Materials | Destroyed self with Rocket Launcher Last Messages --------------- 03466_ Lgt. Ion Engine tumbles out of recycling unit. 03466_ Flight Unit tumbles out of recycling unit. 03466_ G-34 Mercenary destroyed. 03466_ Reclamation Unit tumbles out of recycling unit. 03466_ Electrolysis Chamber disabled. 03466_ Flight Unit tumbles out of recycling unit. 03466_ Destroyed Backup Power I. 03466_ Destroyed Tractor Beam. 03469_ Acquired 20 matter. 03478_ Acquired Aluminum Leg. 03482_ W-16 Scout sends out distress signal. 03488_ Acquired Aluminum Leg. 03488_ U-05 Engineer lays Concrete. 03525_ O-16 Technician: "IFF HANDSHAKE FAILED. SECURING TERMINAL." 03528_ ALERT: Hostiles spotted, dispatching reinforcements to Terminal M001. 03538_ Dropped Mni. Grenade Launcher. 03539_ Acquired Rocket Launcher. 03543_ Destroyed Mining Laser. 03549_ The unstable cave ceiling collapses. Map ----- +----------------------------------------------------+ | ??############?# #???????# # | | ?? = ### ###?????# # | | ?? ### ##???###+####### ^* | | #?? # #???# = | | ? """ " " # ##### | | # """ " [ | | # """ = % [%= | | # ######## | | # """ [%* #### ##?# | | # """ != #?# #??# | | # """ ##### #??# "" | | # "" ### + #??# "" | | # ##?# # #??# S | | ?#########+###??# # o #??# | | ?????????# #????######### #??###### | | ?????????# #?????########+## #???????? | | ?????????# #?????# #? #???????? | | ?????????# #?????# """ #? ##??????? | | ?????????# #?????# """ # #??????? | | ?????????# ####### """ # ######## | | ????????## # # + | | ????????# "# " " # ######## | | ????????# T# "T" ]# #??????# | | ???????## "# """ #?#####??????# | | ???????# Y # #????????????# | | ???????# @ ##########????????????# | | ???????## #?????????????????????# | | ????????# #?????????????????????# | | ????????## ## #?????????????????????# | | ?????????# #######?????????????????????? | | ????????? #???????????????????????????? | | ??????o?? #???????????????????????????? | | ????????? #???????????????????????????? | | ???????? #???????????????????????????? | | ???????? #???????????????????????????? | | ???????? ????????????????????????????? | | ???????? ????????????????????????????? | | ??????? ????????????????????????????? | | ??????? ????????????????????????????? | | ???????? ????????????????????????????? | | ???????? ????????????????????????????? | | ???????? ????????????????????????????? | | ???????????????????????????????????????? | | ???????????????????????????????????????? | | ???????????????????????????????????????? | | ???????????????????????????????????????? | | ???????????????????????????????????????? | | ???????????????????????????????????????? | | ???????????????????????????????????????? | | ???????????????????????????????????????? | +----------------------------------------------------+ Best States ------------- Heat Dissipation 28 Energy Generation 12 Energy Capacity 265 Matter Stores 300 Matter Capacity 300 Sight Range 16 Terrain Scan Density 10 Armor Coverage 225 Evasion (%) 40 Item Schematics ----------------- None Robot Schematics ------------------ None Fabricated ------------ Nothing Alien Tech Used ----------------- None Achievements -------------- None Challenges ------------ None Game ------ Seed RagnarokPointyLog Manual? 0 Play Time 00:34:18 Cumulative 56.6 hours Start 2021.09.21 @ 09:54:56 End 2021.09.21 @ 10:32:45 Sessions 1 Manual Loads 0 Difficulty Rogue Special Mode None Game No. 21 Rogue 21 Adventurer 0 Explorer 0 Win Type - Total 0 Types 0/0/0/0/0/0/0/0/0 Lore% 36 Gallery% 47 Achievement% 34 Wizard Run 0 Options --------- ASCII 0 Keyboard 0 Movement Mouse Keybinds 0 Fullscreen 1 Font 36/Smallcaps Map View 76x50 Tactical HUD 1 Map Filters NONE Filters NONE Steam 1 RUN: 5ac32fa7-f9e1-4e9b-a904-7652b1569aad